Cogmind - Beta 17 @@@ ROGUE MODE // 2026.06.22 @ 21:59:20 Player: Skergy Result: Destroyed by TG-EV9(j) with Overtuned Pulse Rifle Performance ------------- Evolutions (0) 0 Regions Visited (4) 800 Robots Destroyed (37) 185 Value Destroyed (751) 751 Prototype IDs (29) 580 Alien Tech Used (0) 0 Bonus (7513) 7513 TOTAL SCORE: 9829 Bonus ------- Follower Combat Kills 636 Prayed to X0-1V1 5000 Major X0-1V1 Interference 2000 Friendly Fire -123 Cogmind --------- Core Integrity 0/540 Matter 135/300 Energy 880/900 System Corruption 1% Temperature Cool (21) Movement Core (50) Location -7/Scraptown Parts ------- > --- POWER (1) -------- (None) > --- PROPULSION (4) --- (None) > --- UTILITY (2) ------ X0-1V1's Piety Tracker > --- WEAPON (1) ------- (None) > --- INVENTORY (5) ---- Cooled Ion Engine Improved Terrain Scanner Makeshift Laser Heavy Mace Peak State ------------ > --- POWER ------------ Cooled Ion Engine > --- PROPULSION ------- Aluminum Leg Carbon-fiber Leg Improved Carbon-fiber Leg Armored Wheel > --- UTILITY ---------- High-capacity Storage Unit X0-1V1's Piety Tracker > --- WEAPON ----------- Chainsword > --- INVENTORY -------- Hybrid Deuterium Engine Makeshift Power Source Large Matter Pod Improved Terrain Scanner Seismic Detector Targeting Computer Hardened Light Armor Plating Scrap Shield Self-contained Transmogrifier Power Bank Makeshift Laser Plasma Cannon Heavy Battle Rifle Heavy Rocket Launcher Dirty Datajack Datajack Heavy Mace [Rating: 37] Favorites ----------- Power Cooled Ion Engine Engine Cooled Ion Engine Propulsion Light Treads Treads Light Treads Leg Aluminum Leg Wheel Armored Wheel Utility High-capacity Storage Unit Device X0-1V1's Piety Tracker Storage High-capacity Storage Unit Protection Hardened Light Armor Plating Weapon Shotgun Energy Gun Makeshift Laser Ballistic Gun Shotgun Ballistic Cannon Light Cannon Special Weapon Mining Laser Slashing Weapon Chainsword Special Melee Weapon Dirty Datajack Build | -11 -10 -10 -7 -7 ------- Run | Yrd Mat Sub Rec Scr Slots Evolved . | . . . . . Power . | . . . . . Propulsion . | . . . . . Utility . | . . . . . Weapon . | . . . . . Parts Attached 35 | 8 8 14 1 4 Power 3 | 1 1 1 . . Engine 3 | 1 1 1 . . Core . | . . . . . Reactor . | . . . . . Propulsion 10 | 2 1 5 . 2 Treads 3 | 2 . 1 . . Leg 4 | . . 2 . 2 Wheel 3 | . 1 2 . . Hover . | . . . . . Flight . | . . . . . Utility 9 | 3 3 1 . 2 Device 5 | 2 1 1 . 1 Storage 3 | 1 2 . . . Processor . | . . . . . Hackware . | . . . . . Protection 1 | . . . . 1 Artifact . | . . . . . Weapon 13 | 2 3 7 1 . Energy Gun 2 | . . 2 . . Energy Cannon . | . . . . . Ballistic Gun 6 | 2 2 2 . . Ballistic Cannon 1 | . . 1 . . Launcher . | . . . . . Special Weapon 1 | . 1 . . . Impact Weapon . | . . . . . Slashing Weapon 1 | . . . 1 . Piercing Weapon . | . . . . . Special Melee Weapon 2 | . . 2 . . Unidentified Prototypes 2 | . 2 . . . Parts Lost 14 | . . 5 . 9 Power 1 | . . 1 . . Propulsion 8 | . . 2 . 6 Utility 3 | . . 1 . 2 Weapon 2 | . . 1 . 1 Highest Loss Streak 8 | . . 3 . 8 To Critical Strikes . | . . . . . Average Backups 16 | 5 14 19 18 18 Power 1 | . 1 2 1 1 Propulsion 2 | 2 3 2 2 1 Utility 5 | . 4 7 7 6 Weapon 4 | . 4 5 4 4 Tool/Special . | . . . . . Unused Backups 27 | 1 2 9 2 13 Power 4 | . 1 . 1 2 Propulsion 6 | 1 . 3 1 1 Utility 8 | . . 3 . 5 Weapon 8 | . 1 3 . 4 Tool/Special 1 | . . . . 1 Average Slot Usage (%) 99 | . 100 99 100 86 Engine 12 | . 14 11 12 11 Treads 18 | . 21 19 12 9 Leg 6 | . . 10 12 11 Wheel 14 | . 6 18 25 20 Device 12 | . 14 11 12 9 Storage 12 | . 14 12 12 11 Ballistic Gun 11 | . 25 2 . . Ballistic Cannon 2 | . . 5 1 . Special Weapon 2 | . 2 3 . . Slashing Weapon 1 | . . . 10 10 Peak Build Rating 37 | 9 25 33 34 37 Average Rating 21 | 6 13 27 33 29 On Entrance 19 | . 8 24 30 34 Avg Prop Armor Cover (%) 17 | . 11 18 21 22 Naked Turns . | . . . . . Heaviest Build 95 | 11 95 52 52 52 Greatest Support 60 | 40 40 60 24 24 Greatest Overweight (x) 16 | 3 9 5 2 16 Average Overweight (x) 2 | . 5 2 2 2 Largest Inventory Capacity 25 | 8 25 20 20 20 Average Capacity 20 | 7 22 20 20 18 Most Carried 20 | 8 20 20 20 20 Average Carried 16 | 5 14 19 19 18 Final Capacity 20 | 8 20 20 20 5 Final Carried 20 | 8 20 20 20 4 Class Distribution -------------------- 100% | Mutant Dominant Class ---------------- Mutant | -10/Materials Mutant | -10/Subcaves Mutant | -7/Recycling Mutant | -7/Scraptown Resources | -11 -10 -10 -7 -7 ----------- Run | Yrd Mat Sub Rec Scr Matter Collected 1538 | 360 314 830 34 . Remotely . | . . . . . Salvage Created 972 | 139 362 403 68 . Parts 66 | 13 28 23 2 . Haulers Intercepted . | . . . . . Recyclers Shooed . | . . . . . Parts Field Recycled . | . . . . . Retrieved Matter . | . . . . . Parts Self-Destructed 23 | . . 23 . . Prevented . | . . . . . Parts Restored . | . . . . . Kills | -11 -10 -10 -7 -7 ------- Run | Yrd Mat Sub Rec Scr Combat Hostiles Destroyed 20 | . 9 10 1 . Melee 1 | . . . 1 . Guns 14 | . 9 5 . . Cannons 4 | . . 4 . . AOE 1 | . . 1 . . Classes Destroyed 10 | 3 3 3 1 . Worker 4 | 1 3 . . . Tunneler 4 | 4 . . . . Recycler 2 | 1 1 . . . Turret 2 | . . 2 . . Watcher 3 | . 3 . . . Swarmer 6 | . 6 . . . Grunt 8 | . 3 5 . . Sentry 1 | . . . 1 . Subdweller 5 | . . 5 . . Zionite 2 | . . 2 . . Best Kill Streak 6 | 2 6 3 1 . Combat Bots Only 4 | . 4 3 1 . Max Kills in Single Turn 3 | 1 3 1 1 . Gunslinging 1 | . 1 . . . Exploded 1 | . . 1 . . Melee 1 | . . . 1 . Uniques/NPCs Destroyed . | . . . . . Combat | -11 -10 -10 -7 -7 -------- Run | Yrd Mat Sub Rec Scr Hostile Shots Fired 199 | . 40 77 18 64 Missed 54 | . 7 25 6 16 Hits 145 | . 33 52 12 48 Melee 2 | . . . . 2 Projectile 143 | . 33 52 12 46 Critical Strikes 4 | . . . . 4 Damage Taken 2487 | . 334 1036 91 1026 Core 751 | . 116 274 15 346 Absorbed by Shields . | . . . . . Core Remaining (%) 100 | 100 . . . . Volleys Fired 150 | 21 28 101 . . Largest 2 | 2 2 1 . . Hottest 100 | 40 100 100 . . Shots Fired 195 | 42 52 101 . . Gun 116 | 42 48 26 . . Cannon 52 | . . 52 . . Launcher . | . . . . . Special 27 | . 4 23 . . Kinetic 162 | 42 48 72 . . Thermal 31 | . 4 27 . . Explosive . | . . . . . Electromagnetic 2 | . . 2 . . Robot Hit Streak 20 | 5 4 20 . . Robot Miss Streak 7 | 2 7 3 . . Penetration Max . | . . . . . Secondary Targets 1 | . 1 . . . Max Gunslinging Chain 1 | . 1 . . . Shots Hit Robots 132 | 26 35 64 3 4 Core Hits 69 | 12 24 30 2 1 Critical Kills 1 | . . 1 . . Critical Parts Destroyed . | . . . . . Critical Strikes 3 | . . 2 . 1 Burn 1 | . . 1 . . Destroy 1 | . . 1 . . Sever 1 | . . . . 1 Melee Attacks 24 | . . 16 3 5 Impact . | . . . . . Slashing 7 | . . . 3 4 Piercing 15 | . . 15 . . Sneak Attacks 7 | . . 5 1 1 Combat Hostiles 4 | . . 4 . . Follow-up Attacks . | . . . . . Damage Inflicted 1681 | 214 506 800 134 27 Guns 1077 | 214 506 357 . . Cannons 407 | . . 407 . . Explosions . | . . . . . Melee 197 | . . 36 134 27 Ramming . | . . . . . Kinetic 1405 | 214 506 685 . . Thermal 33 | . . 33 . . Explosive . | . . . . . Electromagnetic 46 | . . 46 . . Impact . | . . . . . Slashing 161 | . . . 134 27 Piercing 36 | . . 36 . . Highest Corruption 18 | . . 18 18 1 Average Corruption 17 | . . 17 18 1 Corruption Purged . | . . . . . Corruption Blocked . | . . . . . Effects 41 | . . 20 20 1 Message Errors 10 | . . 4 5 1 Matter Fused 8 | . . 3 5 . Heat Flow Errors 7 | . . 2 5 . Energy Discharges 7 | . . 5 2 . Data Loss (minor) 7 | . . 4 3 . Data Loss (major) 1 | . . 1 . . Weapon Failures 1 | . . 1 . . Overload Shots . | . . . . . Overflow Damage . | . . . . . Projectiles . | . . . . . Explosions . | . . . . . Melee . | . . . . . Knockbacks 6 | . . 6 . . Impact . | . . . . . Kinetic 6 | . . 6 . . Secondary . | . . . . . Self-Inflicted Damage . | . . . . . Shots . | . . . . . Rammed . | . . . . . Targets Rammed . | . . . . . Kicked . | . . . . . Crushed . | . . . . . Highest Temperature 241 | . 24 182 241 20 Average Temperature 63 | . 7 83 98 10 Received Heat Transfer 839 | . 117 261 30 431 Siege Activations . | . . . . . Martial Activations . | . . . . . Shielding Activations . | . . . . . Robots Disrupted . | . . . . . Combat Hostiles . | . . . . . Robots Corrupted . | . . . . . Combat Hostiles . | . . . . . Parts Fried . | . . . . . Impact Corruptions . | . . . . . Robots Melted . | . . . . . Combat Hostiles . | . . . . . Parts Melted 2 | . . 2 . . Heat Transferred 148 | . . 148 . . Parts Sabotaged . | . . . . . Parts Stolen . | . . . . . Parts Stripped . | . . . . . Power Chain Reactions . | . . . . . Alert | -11 -10 -10 -7 -7 ------- Run | Yrd Mat Sub Rec Scr Maximum Alert Level 1 | . . . 1 . Low Security (%) 94 | 100 100 . 72 . Level 1 5 | . . . 27 . Level 2 . | . . . . . Level 3 . | . . . . . Level 4 . | . . . . . Level 5 . | . . . . . High Security . | . . . . . Max Security . | . . . . . Peak Influence 264 | 10 180 . 264 . Initial . | . . . . . Average 51 | 1 31 . 150 . Influence Increases 876 | 30 314 233 299 . Destroy 0b10 Robot/C 400 | . 180 200 20 . Destroy 0b10 Robot/NC 65 | 30 35 . . . Destroy Leader 36 | . 36 . . . Allied During Kill 3 | . . 3 . . Successful Hack 75 | . 60 . 15 . Destroy Structure 3 | . 3 . . . Lose Combat Pursuer 30 | . . 30 . . Miscellaneous 264 | . . . 264 . Influence Decreases 876 | 30 314 233 226 73 Entered New Map 73 | . . . . 73 Time Decay 643 | 30 205 182 226 . Lost Part 30 | . . 30 . . Lost Ally 21 | . . 21 . . Purge Threat 109 | . 109 . . . Squads Dispatched 1 | . 1 . . . Investigation 1 | . 1 . . . Extermination . | . . . . . Reinforcement . | . . . . . Assault . | . . . . . Garrison . | . . . . . Intercept . | . . . . . Searches Triggered . | . . . . . Construction Impeded . | . . . . . Haulers Reinforced . | . . . . . Active Scanning Responses . | . . . . . Cargo Convoy Interrupts . | . . . . . Stealth | -11 -10 -10 -7 -7 --------- Run | Yrd Mat Sub Rec Scr Distress Signals 1 | . 1 . . . Communications Jammed . | . . . . . Distress Signals . | . . . . . Times Spotted 70 | . 15 27 1 27 Peak Tracking Total 20 | . 5 5 1 20 Tactical Retreats 4 | . . 3 . 1 Traps | -11 -10 -10 -7 -7 ------- Run | Yrd Mat Sub Rec Scr Traps Triggered 3 | . . 3 . . Indirectly . | . . . . . Trap Hack Attempts . | . . . . . Triggered . | . . . . . Disarmed . | . . . . . Reprogrammed 3 | . 3 . . . Reused . | . . . . . Traps Extracted . | . . . . . Installed 3 | . . 3 . . Triggered . | . . . . . Most Traps Carried 2 | . . 2 . . Machines | -11 -10 -10 -7 -7 ---------- Run | Yrd Mat Sub Rec Scr Machines Disabled 4 | . . 1 . 3 Max in Single Turn 1 | . . 1 . . Machines Repaired . | . . . . . Machines Dismantled . | . . . . . Machines Sabotaged . | . . . . . Overloaded Fab Kills . | . . . . . Hacking | -11 -10 -10 -7 -7 --------- Run | Yrd Mat Sub Rec Scr Machines Accessed 16 | . 10 2 4 . Terminals 10 | . 8 . 2 . Fabricators . | . . . . . Repair Stations . | . . . . . Recycling Units 4 | . 2 . 2 . Scanalyzers . | . . . . . Garrison Access . | . . . . . Total Hacks 51 | . 40 2 9 . Successful 30 | . 22 2 6 . Failed 21 | . 18 . 3 . Catastrophic 4 | . 2 . 2 . Database Lockouts . | . . . . . Manual 40 | . 33 . 7 . Terminals 34 | . 32 . 2 . Fabricators . | . . . . . Repair Stations . | . . . . . Recycling Units 15 | . 8 . 7 . Scanalyzers . | . . . . . Garrison Access . | . . . . . Terminal Hacks 13 | . 11 2 . . Robot Analysis 2 | . 2 . . . Prototype ID Bank 3 | . 3 . . . Open Door 1 | . . 1 . . Level Access Points 1 | . 1 . . . Unreport Threat 1 | . 1 . . . Locate Traps 2 | . 2 . . . Reprogram Traps 1 | . 1 . . . Registered Components 1 | . 1 . . . Proto ID Catalog 1 | . . 1 . . Fabricator Hacks . | . . . . . Repair Station Hacks . | . . . . . Recycling Unit Hacks 2 | . 1 . 1 . Report Inventory 2 | . 1 . 1 . Scanalyzer . | . . . . . Garrison Access Hacks . | . . . . . Unauthorized Hacks 15 | . 10 . 5 . Terminals 5 | . 5 . . . Botnet 4 | . 4 . . . Operators 1 | . 1 . . . Fabricators . | . . . . . Repair Stations . | . . . . . Recycling Units 10 | . 5 . 5 . Reject 4 | . 2 . 2 . Recyclers 2 | . 1 . 1 . Mask 4 | . 2 . 2 . Scanalyzers . | . . . . . Garrison Access . | . . . . . Data Cores Recovered . | . . . . . Used . | . . . . . Hacking Detections 12 | . 9 . 3 . Full Trace Events . | . . . . . Feedback Events . | . . . . . Feedback Blocked . | . . . . . Robot Schematics Acquired . | . . . . . Robots Built . | . . . . . Authchips . | . . . . . Time . | . . . . . Total Robot Build Rating . | . . . . . Part Schematics Acquired . | . . . . . Parts Built . | . . . . . Authchips . | . . . . . Time . | . . . . . Total Part Build Rating . | . . . . . Part Studies Acquired . | . . . . . Parts Repaired . | . . . . . Time . | . . . . . Parts Recycled . | . . . . . Recycled Matter . | . . . . . Retrieved Matter . | . . . . . Retrieved Components . | . . . . . Parts Scanalyzed . | . . . . . Part Schematics Acquired . | . . . . . Parts Damaged . | . . . . . Bothacking | -11 -10 -10 -7 -7 ------------ Run | Yrd Mat Sub Rec Scr Used RIF Installer . | . . . . . Robots Hacked 2 | . . 1 . 1 Non-combat . | . . . . . Combat 2 | . . 1 . 1 Robot Hacks Applied 2 | . . 1 . 1 parse_system 2 | . . 1 . 1 Relay Couplers Released . | . . . . . Fabnet Peak Effective % . | . . . . . Robots Rewired . | . . . . . Allies Hacked . | . . . . . Hacks Repelled . | . . . . . Allies | -11 -10 -10 -7 -7 -------- Run | Yrd Mat Sub Rec Scr Total Allies 5 | . . 4 . 1 Largest Group 1 | . . 1 . 1 Highest-Rated Group 446 | . . 90 . 446 Highest-Rated Ally 446 | . . 90 . 446 Total Orders . | . . . . . Ally Attacks 40 | . . 13 . 27 Total Damage 3125 | . . 365 . 2760 Kills 23 | . . 5 . 18 Allies Corrupted 1 | . . 1 . . Allies Melted . | . . . . . X0-1V1 Amusement Gains 175 | . 3 93 . 79 Good Acts 27 | . 1 23 1 2 Bad Acts 24 | . 5 16 2 1 Intel | -11 -10 -10 -7 -7 ------- Run | Yrd Mat Sub Rec Scr Active Infowar (turns) 1767 | 194 1573 . . . Terrain 38 | 38 . . . . Seismic 1729 | 156 1573 . . . Robot Analysis Total 2 | . 2 . . . Derelict Logs Recovered . | . . . . . Drone Launches . | . . . . . Drone Recoveries . | . . . . . Exploration | -11 -10 -10 -7 -7 ------------- Run | Yrd Mat Sub Rec Scr Turns Passed 4537 | 261 1725 1846 484 221 Spaces Moved 2404 | 113 707 1053 378 153 Core 35 | 21 . . . 14 Treads 593 | 92 333 168 . . Legs 1 | . . . . 1 Wheels 1775 | . 374 885 378 138 Hover . | . . . . . Flight . | . . . . . Fastest Speed 50 | 50 155 105 120 100 Average Speed 161 | 153 226 139 120 130 Slowest Speed 850 | 200 320 240 120 850 Overloaded Moves . | . . . . . Propulsion Burnouts . | . . . . . Robots Hopped . | . . . . . Potential Cave-ins 1 | . . 1 . . Cave-ins Triggered . | . . . . . Exploration Rate (%) 52 | 4 98 65 77 19 Regions Visited 4 Branch Regions 3 Pre-discovered Areas 1 | . . 1 . . Known Exits Taken 1 | . . 1 . . Unknown Exits Taken 3 | 1 1 . 1 . Scrap Searched 8 | . . 5 . 3 Spaces Dug 8 | . 4 4 . . Terrain Destroyed 8 | . 4 4 . . Melee . | . . . . . Projectile 8 | . 4 4 . . AOE . | . . . . . Terrain Rammed . | . . . . . Walls Destroyed . | . . . . . Machines Disabled . | . . . . . Actions | -11 -10 -10 -7 -7 --------- Run | Yrd Mat Sub Rec Scr Total 2801 | 164 772 1288 406 171 Wait 94 | 11 2 65 16 . Move 2400 | 112 706 1052 377 153 Hop . | . . . . . Pick Up 45 | 10 15 14 4 2 Fast Attach 13 | 7 2 2 1 1 Attach 10 | . 1 6 . 3 Detach 4 | . 1 1 1 1 Swap 29 | 1 10 16 . 2 Drop 28 | 2 7 11 4 4 Fire 150 | 21 28 101 . . Melee 24 | . . 16 3 5 Ram . | . . . . . Kick . | . . . . . Crush . | . . . . . Escape Stasis . | . . . . . Rewire 1 | . . 1 . . Trap 3 | . . 3 . . Miscellaneous . | . . . . . Route ------- -11/Scrapyard -10/Materials (discovered 6 exits: *Mat x3 / [*Min x2] / *Sub) -10/Subcaves (discovered 3 exits: *Mat x2 / *Rec) -7/Recycling (discovered 2 exits: [*Fac] / [*Scr]) -7/Scraptown History --------- Turn | Location | Event 29 | -11/Scrapyard | Discovered new exit (range 15) 262 | -11/Scrapyard | Entered Materials 305 | -10/Materials | Build established: Mutant 554 | -10/Materials | Discovered new exit (range 5) 676 | -10/Materials | Discovered new exit (range 3) 925 | -10/Materials | Discovered new exit (range 9) 1114 | -10/Materials | Discovered new exit (range 5) 1306 | -10/Materials | Identified exit to Materials 1803 | -10/Materials | Discovered new exit (range 10) 1825 | -10/Materials | Prayed at D.C.S.S. Altar Unit 1960 | -10/Materials | X0-1V1 mutated your Weapon slot to Propulsion slot 1976 | -10/Materials | X0-1V1 vaporized surrounding terrain (radius 17) 1976 | -10/Materials | Melee accuracy permanently improved by X0-1V1 (+6%) 1987 | -10/Materials | Entered Subcaves 1989 | -10/Subcaves | Core integrity restored by X0-1V1 (+38) 1998 | -10/Subcaves | Propulsion slot count permanently improved by X0-1V1 (+1) 2037 | -10/Subcaves | X0-1V1 sent hostile G-34 Mercenary (x5) 2061 | -10/Subcaves | X0-1V1 sent allied H-61 Shepherd (x1) 2077 | -10/Subcaves | Core integrity permanently improved by X0-1V1 (+350) 2101 | -10/Subcaves | X0-1V1 activates XOMVISION 2137 | -10/Subcaves | Identified exit to Materials 2137 | -10/Subcaves | X0-1V1 revealed exit location to -8/Materials 2140 | -10/Subcaves | System corruption reached 10% 2201 | -10/Subcaves | X0-1V1 whisked you away to safety 2207 | -10/Subcaves | Shifting Twisted Machinery released Mak. Laser 2211 | -10/Subcaves | Shifting Twisted Machinery released Sub. Laser 2235 | -10/Subcaves | Identified exit to Recycling 2235 | -10/Subcaves | X0-1V1 revealed exit location to -7/Recycling 2261 | -10/Subcaves | A swath of the cavern ceiling suddenly collapsed 2306 | -10/Subcaves | X0-1V1 revealed exit location to -8/Materials 2540 | -10/Subcaves | Learned location of Zion (-6) 2540 | -10/Subcaves | Met a Zionite searching for "candidates" 2541 | -10/Subcaves | X0-1V1 activates XOMVISION 2652 | -10/Subcaves | Disturbed a concealed Subdweller 2653 | -10/Subcaves | Disturbed a concealed Subdweller 2750 | -10/Subcaves | X0-1V1 sent hostile G-34 Mercenary (x5) 2906 | -10/Subcaves | Lost 3 parts (1p2n) 3254 | -10/Subcaves | Shifting Twisted Machinery released Sub. Machine Gun 3256 | -10/Subcaves | Shifting Twisted Machinery released Flamer 3501 | -10/Subcaves | Core integrity fell below 50% 3592 | -10/Subcaves | Core integrity restored by X0-1V1 (+102) 3672 | -10/Subcaves | Visited 4L-MR0's lab 3683 | -10/Subcaves | Found Prototype Device 3710 | -10/Subcaves | Found Power Bank 3833 | -10/Subcaves | Entered Recycling 3861 | -7/Recycling | X0-1V1 added 0b10 threat records associated with you (major) 4256 | -7/Recycling | Discovered new exit (range 16) 4290 | -7/Recycling | Scanned before Scraplab entrance 4307 | -7/Recycling | Entered Scraplab 4316 | -7/Recycling | Discovered new exit (range 2) 4317 | -7/Recycling | Entered Scraptown 4317 | -7/Scraptown | System corruption cleaned by C-Scrubber 4472 | -7/Scraptown | Visited Shadow of the Wyrm 4479 | -7/Scraptown | X0-1V1 brought Wyrm Statue to life 4479 | -7/Scraptown | Attacked by Scraptown defenders 4513 | -7/Scraptown | Core integrity fell below 20% 4537 | -7/Scraptown | Lost 8 parts (6n1u1w) 4538 | -7/Scraptown | Destroyed by TG-EV9(j) with Overtuned Pulse Rifle Last Messages --------------- Ripteeth. 04524_ Critical hit (Burn: +50). 04524_ CL-C36(r) follow-up attacks with Ripteeth. 04525_ CL-C36(r) destroyed. 04525_ CL-THO(x) destroyed. 04525_ OZ-S09(r) destroyed. 04526_ Dropped Scrap Shield. 04527_ Supplies damaged. 04528_ The unstable cave ceiling collapses. 04530_ QJ-XX7(E) suffers critical hit (Meltdown). 04530_ Chaos Wyrm destroyed. 04535_ 4 2P<5IP=G#WGBC Z98OKMU Q 2ALQQFZY 04536_ X0-1V1: "Heat sink stocks are down. Don't ask me how I know." (+78 heat dissipation) 04538_ Triborg activates siege mode. 04538_ Hrd. Light Armor Plating destroyed. 04538_ Acquired X0-1V1's Piety Tracker. 04538_ X0-1V1 chuckles heartily! Map ----- +----------------------------------------------------+ | ?????????????????????????????????????????????????? | | ?????????????????????????????????????????????????? | | ?????????????????????????????????????????????????? | | ?????????????????????????????????????????????????? | | ?????????????????????????????????????????????????? | | ?????????????????????????????????????????????????? | | ???????????? ??????????????????????????????????? | | ???????????? ????????????????????????????????? | | ???????????? #???????????????????????????????? | | ???????????# !% #???????????????????????????????? | | ???????????# #???????????????????????????????? | | ???????????# #????? ????????????????????????? | | ???????????# ##???? ??????????????????????? | | ???????????# "#??? ??????????????????????? | | ????########! ##? #??????????????????????? | | ???## = #" ????????????????????????? | | ??## ?????????????????????????? | | ??# =[%! # " ??????????????????????????? | | ??# *%!p "???????????????? ??????????? | | ??# % % =%=// #??????????????? ??????????? | | ??# !!]%=! ############### ??????????? | | ??# [ ]]!*= T?????????? | | ??## = **!* j ?????????? | | ??# !]!/! p ????????? | | ??###" /]j! x g ????????? | | ????## # =[[ @ ????????? | | ????## %!%! ????????? | | ????# !=%* ????????? | | ###### !%== ?????????? | | ###;################ ###?????????? | | ???????????????????????????? | | """### # ??????????????????????????? | | "#?# ####" "?????????????????????????? | | "#?# #??#"" """"" "#????????????????????????? | | "#?# #??#" """"" "#????????????????????????? | | "#?# #???"" """"" "#????????????????????????? | | "#?# #???? ???? "?????????????????????????? | | """#?# #????###????? #?????????????????????????? | | ####?# #???????????? ??????????????????????????? | | ##???# #???????????????????????????????????????? | | "#???# #???????????????????????????????????????? | | "#???# #???????????????????????????????????????? | | #???# #???????????????????????????????????????? | | ##### #???????????????????????????????????????? | | ##??????????????????????????????????????? | | #??????????????????????????????????????? | | ##??????????????????????????????????????? | | ## ### ##???????????????????????????????????????? | | ?# #?###????????????????????????????????????????? | | ## ######???????????????????????????????????????? | +----------------------------------------------------+ Best States ------------- Heat Dissipation 25 Energy Generation 26 Energy Capacity 1280 Matter Stores 300 Matter Capacity 300 Sight Range 18 Terrain Scan Range 16 Terrain Scan Density 10 Armor Coverage 150 Evasion (%) 40 Recoil Reduction 3 Item Schematics ----------------- None Robot Schematics ------------------ None Fabricated ------------ Nothing Repaired ---------- Nothing Studied --------- None Alien Tech Used ----------------- None Achievements -------------- Chaos Is Inevitable Challenges ------------ None Game ------ Seed VampiricGrenadeSpecial Manual? 0 Play Time 01:04:28 Cumulative 146.7 hours Start 2026.06.22 @ 20:16:22 End 2026.06.22 @ 21:59:20 Sessions 3 Manual Loads 0 Difficulty Rogue Special Mode None Game No. 159 Rogue 159 Adventurer 0 Explorer 0 Win Type - Total 4 Types 4/0/0/0/0/0/0/0/0/0 Lore% 71 Gallery% 55 Achievement% 44 Wizard Run 0 Options --------- Layout 1 ASCII 0 Keyboard 1 Movement Vi Keybinds 0 Fullscreen 2 Font 24/Terminus Map View 50x35 Zoom Use 0% Tactical HUD 1 Map Filters NONE Filters NONE Steam 1 RUN: 3535abf1-41d4-43ff-8d95-02263cba6b7b